[Event "2nd Bundesliga Nord 2024-25"]
[Site "Germany"]
[Date "2025.02.23"]
[Round "9.16"]
[White "Kniest, Oliver"]
[Black "Bogdanov, Egor"]
[Result "0-1"]
[Annotator "TA"]
[ECO "E33"]
[WhiteElo "2188"]
[BlackElo "2489"]
[PlyCount "98"]
[EventDate "2024.11.29"]
[EventType "team-tourn"]
[EventCountry "GER"]
[SourceTitle "playchess.com"]
[Source "ChessBase"]
[SourceQuality "1"]
[TimeControl "40/5400+30:1800+30"]

{[%evp 11,98,50,46,46,51,45,55,29,27,27,29,24,16,9,25,23,27,11,15,15,56,48,51,39,69,56,62,39,52,28,74,74,94,81,94,88,79,84,86,65,59,57,56,55,68,48,70,54,54,60,60,52,54,41,41,50,53,52,56,43,42,46,45,0,0,0,0,-54,-60,-55,-68,-34,-44,-151,-145,-181,-148,-309,-318,-531,-385,-29993,-29994,-29995,-29996,-29996,-29997,-29997,-403]} 1. d4 {[%emt 0:00:05]} Nf6 {[%emt 0:02:15]} 2. c4 {[%emt 0:00:20]} e6 {[%emt 0:01:04]} 3. Nc3 {[%emt 0:00:32]} Bb4 {[%emt 0:00:11]} 4. Qc2 {[%emt 0:00:26]} Nc6 {[%emt 0:00:34]} 5. Nf3 {[%emt 0:02:06]} d6 {[%emt 0:00:50]} 6. Bd2 {[%emt 0:02:35]} Qe7 {[%emt 0:09:33]} 7. a3 {[%emt 0:03:22]} Bxc3 {[%emt 0:00:12]} 8. Bxc3 {[%emt 0:00:10]} e5 {[%emt 0:10:12]} 9. dxe5 {[%emt 0:04:59] White is slightly better.} dxe5 {[%emt 0:02:04]} 10. e3 {[%emt 0:00:49]} a5 {[%emt 0:04:46]} 11. b3 {[%emt 0:06:55]} O-O {[%emt 0:04:14]} 12. Be2 {[%emt 0:04:13]} Bg4 {[%emt 0:02:56][%cal Bc8g4,Bg4h5,Bh5g6,Bg6e4,Be4f5][%mdl 32]} 13. O-O {[%emt 0:07:32]} Rfe8 {[%emt 0:09:55]} 14. h3 {[%emt 0:04:45]} Bh5 {[%emt 0:00:48]} 15. Rfd1 {[%emt 0:05:25]} Bg6 {[%emt 0:02:15]} 16. Qb2 {[%emt 0:02:19]} Ne4 {[%emt 0:01:31]} 17. Be1 {[%emt 0:00:50]} Ng5 {[%emt 0:12:36]} 18. b4 {[%emt 0:09:17]} Be4 {[%emt 0:08:31]} 19. Nxg5 {[%emt 0:12:39]} Qxg5 {[%emt 0:00:03][%csl Ge4][%cal Rg5g2] [#]} 20. Bf1 {[%emt 0:00:09]} a4 {[%emt 0:06:06]} (20... Nd8 $11 {deserves consideration.}) 21. Kh2 $16 {[%emt 0:01:44]} Nd8 {[%emt 0:04:36]} 22. f3 {[%emt 0:04:06]} Bf5 {[%emt 0:03:05]} 23. Bg3 {[%emt 0:02:55]} Qe7 {[%emt 0:05:19]} 24. e4 {[%emt 0:03:57]} Bg6 {[%emt 0:00:20]} 25. Rd5 {[%emt 0:01:25]} f6 {[%emt 0:00:46]} 26. Rad1 {[%emt 0:02:19]} Ne6 $1 {[%emt 0:02:16]} 27. Rd7 {[%emt 0:01:50]} Qf8 {[%emt 0:00:01]} 28. Bf2 {[%emt 0:03:44]} Re7 {[%emt 0:00:37]} 29. c5 {[%emt 0:05:03]} Rxd7 {[%emt 0:00:16]} 30. Rxd7 {[%emt 0:00:02]} Be8 {[%emt 0:00:23]} 31. Rd1 {[%emt 0:01:17]} Bf7 {[%emt 0:00:14]} 32. Bc4 {[%emt 0:01:28]} Qe8 {[%emt 0:01:20] Dodges Rd7} 33. b5 {[%emt 0:03:34]} Nd8 {[%emt 0:00:54]} 34. Qb4 {[%emt 0:01:05] White has space advantage and is better} h6 {[%emt 0:01:06]} 35. Rd2 {[%emt 0:00:48]} Bxc4 {[%emt 0:00:35]} 36. Qxc4+ {[%emt 0:00:02]} Kh7 {[%emt 0:00:26]} 37. Qd3 {[%emt 0:04:13]} Ne6 {[%emt 0:01:06] Not much happening anymore} 38. Qd7 {[%emt 0:00:00]} Qg8 $1 {[%emt 0:00:55]} 39. Be3 {[%emt 0:00:08]} (39. c6 $2 Rd8 $19) (39. Rc2 $11) 39... Rd8 $15 {[%emt 0:00:58]} 40. Qe7 {[%emt 0:00:02] Rxd8 is the strong threat.} Rxd2 {[%emt 0:00:23]} 41. Bxd2 {[%emt 0:30:02][%mdl 4096] Endgame KQB-KQN} Nd4 $36 {[%emt 0:30:45][%mdl 2048] Black has the initiative.} 42. c6 {[%emt 0:00:00]} (42. Qxc7 $2 Qa2 43. Qa5 Nb3 $19 (43... Qxa3 44. c6 $15)) (42. Be3 $1 $15) 42... Qa2 $17 {[%emt 0:00:00]} 43. Qb4 {[%emt 0:00:00]} (43. cxb7 $2 Qxd2 44. Qc5 (44. b8=B Nxf3+ 45. Kg3 Nh4) 44... Nxf3+ 45. Kg3 Qf4+ 46. Kf2 Nd4+ (46... Nh4+ $2 47. Kg1 $19) 47. Kg1 Ne2+ (47... Qxe4 48. b8=Q $11) 48. Kh1 Qf1+ (48... Qxe4 49. b8=Q $11) 49. Kh2 Nf4 $19) 43... b6 {[%emt 0:00:00] Threatens to win with ...Qb3.} 44. Kg3 $2 {[%emt 0:00:00] This move loses the game for White.} (44. f4 $17) 44... Qb3 $19 {[%emt 0:00:00]} 45. Qe7 $2 {[%emt 0:00:00]} (45. Qf8 {was necessary.}) 45... Qd1 {[%emt 0:00:00] ( -> ...Qg1)} 46. Bb4 $2 {[%emt 0:00:00] [#]} (46. Qb4 $19) 46... Qg1 {[%emt 0:00:00] Black mates.} (46... Nxb5 47. Qd7 Nd4 48. Bf8 (48. Qxc7 Ne2+ 49. Kf2 Nf4 50. Kg3 Qg1) 48... Qe1+ 49. Kh2 Nxf3+ 50. gxf3 Qf2+ 51. Kh1 Qf1+ (51... Qxf3+ 52. Kg1 $11) 52. Kh2 Qf2+ (52... Qxf3 53. Qxg7#) 53. Kh1 Qf1+ 54. Kh2 Qf2+ $11) 47. Qd7 {[%emt 0:02:46]} Ne2+ {[%emt 0:00:00]} (47... Nxb5 48. Bf8 Qe1+ 49. Kh2) 48. Kh4 {[%emt 0:00:27]} Qf2+ {[%emt 0:00:00]} ({Less strong is} 48... Qxg2 49. Qf5+ Qg6 50. Bd6 Qxf5 (50... cxd6 $2 {is the wrong capture.} 51. Qxg6+ Kxg6 52. c7 $18) 51. exf5 $17) 49. Kh5 {[%emt 0:00:37]} Nf4+ {[%emt 0:00:00] Weighted Error Value: White=0.31/Black=0.11 (very precise)   Loses game:     	White=1     	---        Mistake:       	White=4     	Black=1      Inaccurate:     	White=2     	Black=2      OK:         	White=12    	Black=22     Best:        	---       	Black=1      Strong:       	---       	Black=2} 0-1